Cogmind - Beta 12 @@@ ROGUE MODE // 2023.05.02 @ 20:48:05 Player: Exp. Geonium Core Result: Destroyed by 8R-AWN with 8R-AWN's Boregun Performance ------------- Evolutions (1) 500 Regions Visited (5) 1000 Robots Destroyed (15) 75 Value Destroyed (303) 303 Prototype IDs (24) 480 Alien Tech Used (0) 0 Bonus (373) 373 TOTAL SCORE: 2731 Bonus ------- Follower Combat Kills 89 Aligned with FarCom 300 Friendly Fire -16 Cogmind --------- Core Integrity 0/400 Matter 252/300 Energy 100/100 System Corruption 3% Temperature Cool (0) Movement Core (50) Location -9/Exiles Parts ------- > --- POWER (1) -------- (None) > --- PROPULSION (3) --- (None) > --- UTILITY (3) ------ (None) > --- WEAPON (2) ------- (None) > --- INVENTORY (5) ---- Cooled Ion Engine Improved Heat Sink Peak State ------------ > --- POWER ------------ Cooled Ion Engine > --- PROPULSION ------- Light Treads Light Treads Light Treads > --- UTILITY ---------- Heat Sink Large Storage Unit Light Armor Plating > --- WEAPON ----------- Light Assault Rifle Heavy Assault Rifle > --- INVENTORY -------- Cooled Ion Engine Nuclear Core Nuclear Core Reinforced Deuterium Engine Light Treads Light Treads Light Treads Light Treads Light Treads Improved Heat Sink Light Armor Plating Light Assault Rifle Light Assault Rifle [Rating: 14] Favorites ----------- Power Cooled Ion Engine Engine Cooled Ion Engine Power Core Light Nuclear Core Propulsion Light Treads Treads Light Treads Leg Aluminum Leg Utility Large Storage Unit Device Heat Sink Storage Large Storage Unit Protection Light Armor Plating Weapon Light Assault Rifle Energy Gun Small Laser Ballistic Gun Light Assault Rifle Build | -11 -10 -10 -9 -9 -9 ------- Run | Jun Mat Min Mat Min Exi Slots Evolved 2 | . . . 2 . . Power . | . . . . . . Propulsion 1 | . . . 1 . . Utility 1 | . . . 1 . . Weapon . | . . . . . . Parts Attached 30 | . 2 . 14 . 14 Power 3 | . . . 3 . . Engine 2 | . . . 2 . . Core 1 | . . . 1 . . Reactor . | . . . . . . Propulsion 13 | . . . 6 . 7 Treads 13 | . . . 6 . 7 Leg . | . . . . . . Wheel . | . . . . . . Hover . | . . . . . . Flight . | . . . . . . Utility 7 | . 2 . 3 . 2 Device 1 | . . . 1 . . Storage 2 | . 1 . . . 1 Processor . | . . . . . . Hackware . | . . . . . . Protection 4 | . 1 . 2 . 1 Artifact . | . . . . . . Weapon 7 | . . . 2 . 5 Energy Gun . | . . . . . . Energy Cannon . | . . . . . . Ballistic Gun 7 | . . . 2 . 5 Ballistic Cannon . | . . . . . . Launcher . | . . . . . . Special Weapon . | . . . . . . Impact Weapon . | . . . . . . Slashing Weapon . | . . . . . . Piercing Weapon . | . . . . . . Special Melee Weapon . | . . . . . . Unidentified Prototypes 1 | . . . 1 . . Parts Lost 16 | . . . 1 . 15 Power 1 | . . . . . 1 Propulsion 8 | . . . . . 8 Utility 3 | . . . 1 . 2 Weapon 4 | . . . . . 4 Highest Loss Streak 13 | . . . 1 . 13 To Critical Strikes 8 | . . . . . 8 Average Slot Usage (%) 85 | . 99 100 86 100 75 Engine 11 | . 14 14 10 11 9 Treads 17 | . . . 9 33 30 Leg 10 | . 28 28 16 . . Device 6 | . . . 6 11 9 Storage 12 | . 14 14 11 11 12 Protection 10 | . 13 14 9 11 8 Energy Gun 4 | . 14 14 3 . . Ballistic Gun 11 | . 14 14 18 22 4 Naked Turns 6 | . . . . . 6 Heaviest Build 36 | 10 28 28 36 34 36 Greatest Support 60 | 20 20 20 60 60 60 Greatest Overweight (x) 1 | . 1 1 1 . . Average Overweight (x) . | . . 1 . . . Largest Inventory Capacity 35 | . 15 15 15 15 35 Average Capacity 16 | . 10 15 15 15 18 Most Carried 15 | . 8 8 15 15 15 Average Carried 10 | . 7 8 12 15 11 Final Capacity 15 | 8 15 15 15 15 5 Final Carried 15 | 6 8 8 15 15 2 Class Distribution -------------------- 79% | Mutant 11% | Scavenger-Mutant 8% | Hauler-Mutant Dominant Class ---------------- Mutant | -10/Materials Mutant | -10/Mines Mutant | -9/Materials Scavenger-Mutant | -9/Mines Mutant | -9/Exiles Resources | -11 -10 -10 -9 -9 -9 ----------- Run | Jun Mat Min Mat Min Exi Matter Collected 642 | 200 19 10 205 . 208 Remotely . | . . . . . . Salvage Created 612 | . 144 16 378 . 74 Parts 43 | . 7 3 33 . . Haulers Intercepted 2 | . 1 . 1 . . Recyclers Shooed . | . . . . . . Parts Field Recycled . | . . . . . . Retrieved Matter . | . . . . . . Parts Self-Destructed . | . . . . . . Prevented . | . . . . . . Kills | -11 -10 -10 -9 -9 -9 ------- Run | Jun Mat Min Mat Min Exi Combat Hostiles Destroyed 16 | . 2 1 7 . 6 Guns 14 | . 2 1 7 . 4 AOE 2 | . . . . . 2 Classes Destroyed 7 | . 2 1 3 . 1 Worker 2 | . . . 2 . . Tunneler 1 | . . . 1 . . Hauler 2 | . 1 . 1 . . Swarmer 4 | . . 1 3 . . Grunt 3 | . 2 . 1 . . Sentry 3 | . . . 3 . . Assembled 6 | . . . . . 6 Best Kill Streak 6 | . 2 1 4 . 6 Combat Bots Only 6 | . 2 1 2 . 6 Max Kills in Single Turn 1 | . 1 1 1 . 1 Gunslinging . | . . . . . . Exploded 1 | . . . . . 1 Melee . | . . . . . . Uniques/NPCs Destroyed . | . . . . . . Combat | -11 -10 -10 -9 -9 -9 -------- Run | Jun Mat Min Mat Min Exi Damage Taken 2807 | . 112 86 411 . 2198 Core 468 | . 44 23 95 . 306 Absorbed by Shields . | . . . . . . Core Remaining (%) 86 | 100 . 73 . . . Volleys Fired 112 | . 9 2 32 . 69 Largest 2 | . 2 2 2 . 2 Hottest 60 | . 60 60 60 . 43 Shots Fired 206 | . 18 4 65 . 119 Gun 206 | . 18 4 65 . 119 Cannon . | . . . . . . Launcher . | . . . . . . Special . | . . . . . . Kinetic 188 | . 9 2 58 . 119 Thermal 18 | . 9 2 7 . . Explosive . | . . . . . . Electromagnetic . | . . . . . . Robot Hit Streak 14 | . 5 1 11 . 14 Robot Miss Streak 6 | . 1 2 6 . 2 Penetration Max . | . . . . . . Secondary Targets 1 | . . 1 . . . Max Gunslinging Chain 1 | . . 1 . . . Shots Hit Robots 142 | . 13 1 39 . 89 Core Hits 63 | . 8 1 23 . 31 Critical Kills . | . . . . . . Critical Parts Destroyed . | . . . . . . Critical Strikes . | . . . . . . Melee Attacks . | . . . . . . Impact . | . . . . . . Slashing . | . . . . . . Piercing . | . . . . . . Sneak Attacks . | . . . . . . Combat Hostiles . | . . . . . . Follow-up Attacks . | . . . . . . Damage Inflicted 1355 | . 128 14 386 . 827 Guns 1310 | . 128 12 358 . 812 Cannons . | . . . . . . Explosions . | . . . . . . Melee . | . . . . . . Ramming 45 | . . 2 28 . 15 Kinetic 1157 | . 39 . 306 . 812 Thermal 153 | . 89 12 52 . . Explosive . | . . . . . . Electromagnetic . | . . . . . . Impact . | . . . . . . Slashing . | . . . . . . Piercing . | . . . . . . Highest Corruption 3 | . . . 3 3 3 Average Corruption 3 | . . . 3 3 3 Corruption Purged . | . . . . . . Corruption Blocked . | . . . . . . Effects 31 | . . . 8 2 21 Message Errors 10 | . . . 2 2 6 Matter Fused 8 | . . . 3 . 5 Heat Flow Errors 2 | . . . . . 2 Energy Discharges 3 | . . . 1 . 2 Data Loss (minor) 5 | . . . 1 . 4 Data Loss (major) 2 | . . . . . 2 Misfires 1 | . . . 1 . . Overload Shots . | . . . . . . Overflow Damage . | . . . . . . Projectiles . | . . . . . . Explosions . | . . . . . . Melee . | . . . . . . Knockbacks 1 | . . . 1 . . Impact 1 | . . . 1 . . Kinetic . | . . . . . . Secondary . | . . . . . . Self-Inflicted Damage 2 | . . . . . 2 Shots . | . . . . . . Rammed 14 | . . . 4 . 10 Targets Rammed 17 | . . 1 6 . 10 Kicked 3 | . . 1 2 . . Crushed . | . . . . . . Highest Temperature 190 | . 145 35 76 . 190 Average Temperature 60 | . 68 18 47 . 84 Received Heat Transfer 186 | . 66 . 120 . . Siege Activations . | . . . . . . Robots Corrupted . | . . . . . . Combat Hostiles . | . . . . . . Parts Fried . | . . . . . . Impact Corruptions . | . . . . . . Robots Melted . | . . . . . . Combat Hostiles . | . . . . . . Parts Melted . | . . . . . . Heat Transferred 350 | . 200 25 125 . . Parts Sabotaged . | . . . . . . Parts Stolen . | . . . . . . Parts Stripped . | . . . . . . Power Chain Reactions . | . . . . . . Missiles Intercepted . | . . . . . . Alert | -11 -10 -10 -9 -9 -9 ------- Run | Jun Mat Min Mat Min Exi Peak Influence 283 | . 87 251 283 65 . Initial 97 | . . 33 97 65 . Average 145 | . 58 174 170 65 . Maximum Alert Level 1 | . . 1 1 . . Low Security (%) 76 | . 100 89 57 100 . Level 1 23 | . . 10 42 . . Level 2 . | . . . . . . Level 3 . | . . . . . . Level 4 . | . . . . . . Level 5 . | . . . . . . High Security . | . . . . . . Max Security . | . . . . . . Squads Dispatched 1 | . . . 1 . . Investigation . | . . . . . . Extermination . | . . . . . . Reinforcement 1 | . . . 1 . . Assault . | . . . . . . Garrison . | . . . . . . Intercept . | . . . . . . Searches Triggered . | . . . . . . Construction Impeded . | . . . . . . Haulers Reinforced . | . . . . . . Active Scanning Responses . | . . . . . . Cargo Convoy Interrupts . | . . . . . . Stealth | -11 -10 -10 -9 -9 -9 --------- Run | Jun Mat Min Mat Min Exi Distress Signals 2 | . . . 2 . . Communications Jammed . | . . . . . . Distress Signals . | . . . . . . Times Spotted 45 | . 4 9 20 . 12 Peak Tracking Total 12 | . 2 3 6 . 12 Tactical Retreats 3 | . . . 1 . 2 Traps | -11 -10 -10 -9 -9 -9 ------- Run | Jun Mat Min Mat Min Exi Traps Triggered . | . . . . . . Indirectly . | . . . . . . Trap Hack Attempts . | . . . . . . Triggered . | . . . . . . Disarmed . | . . . . . . Reprogrammed . | . . . . . . Reused . | . . . . . . Traps Extracted . | . . . . . . Installed . | . . . . . . Triggered . | . . . . . . Exploded 3 | . . . . . 3 Machines | -11 -10 -10 -9 -9 -9 ---------- Run | Jun Mat Min Mat Min Exi Machines Disabled 1 | . . . . . 1 Max in Single Turn 1 | . . . . . 1 Machines Repaired . | . . . . . . Machines Sabotaged . | . . . . . . Overloaded Fab Kills . | . . . . . . Hacking | -11 -10 -10 -9 -9 -9 --------- Run | Jun Mat Min Mat Min Exi Machines Accessed 3 | . . . 1 . 2 Terminals 1 | . . . 1 . . Fabricators . | . . . . . . Repair Stations . | . . . . . . Recycling Units . | . . . . . . Scanalyzers . | . . . . . . Garrison Access . | . . . . . . Total Hacks 3 | . . . 1 . 2 Successful 2 | . . . . . 2 Failed 1 | . . . 1 . . Catastrophic 1 | . . . 1 . . Database Lockouts . | . . . . . . Manual 2 | . . . 1 . 1 Terminals 1 | . . . 1 . . Fabricators . | . . . . . . Repair Stations . | . . . . . . Recycling Units . | . . . . . . Scanalyzers . | . . . . . . Garrison Access . | . . . . . . Terminal Hacks 2 | . . . . . 2 Record 1 | . . . . . 1 EX-Prototype ID Bank 1 | . . . . . 1 Fabricator Hacks . | . . . . . . Repair Station Hacks . | . . . . . . Recycling Unit Hacks . | . . . . . . Scanalyzer . | . . . . . . Garrison Access Hacks . | . . . . . . Unauthorized Hacks . | . . . . . . Terminals . | . . . . . . Fabricators . | . . . . . . Repair Stations . | . . . . . . Recycling Units . | . . . . . . Scanalyzers . | . . . . . . Garrison Access . | . . . . . . Data Cores Recovered . | . . . . . . Used . | . . . . . . Hacking Detections 1 | . . . 1 . . Full Trace Events . | . . . . . . Feedback Events . | . . . . . . Feedback Blocked . | . . . . . . Robot Schematics Acquired . | . . . . . . Robots Built . | . . . . . . Authchips . | . . . . . . Time . | . . . . . . Total Robot Build Rating . | . . . . . . Part Schematics Acquired . | . . . . . . Parts Built . | . . . . . . Authchips . | . . . . . . Time . | . . . . . . Total Part Build Rating . | . . . . . . Parts Repaired . | . . . . . . Time . | . . . . . . Parts Recycled . | . . . . . . Recycled Matter . | . . . . . . Retrieved Matter . | . . . . . . Retrieved Components . | . . . . . . Parts Scanalyzed . | . . . . . . Part Schematics Acquired . | . . . . . . Parts Damaged . | . . . . . . Bothacking | -11 -10 -10 -9 -9 -9 ------------ Run | Jun Mat Min Mat Min Exi Used RIF Installer . | . . . . . . Robots Hacked . | . . . . . . Non-combat . | . . . . . . Combat . | . . . . . . Robot Hacks Applied . | . . . . . . Relay Couplers Released . | . . . . . . Fabnet Peak Effective % . | . . . . . . Robots Rewired . | . . . . . . Allies Hacked . | . . . . . . Hacks Repelled . | . . . . . . Allies | -11 -10 -10 -9 -9 -9 -------- Run | Jun Mat Min Mat Min Exi Total Allies 5 | . . 3 . 2 . Largest Group 3 | . . 3 2 2 2 Highest-Rated Group 40 | . . 40 32 39 39 Highest-Rated Ally 31 | . . 16 16 31 31 Total Orders . | . . . . . . Ally Attacks 33 | . . 19 14 . . Total Damage 304 | . . 168 136 . . Kills 9 | . . 8 1 . . Allies Corrupted . | . . . . . . Allies Melted . | . . . . . . Intel | -11 -10 -10 -9 -9 -9 ------- Run | Jun Mat Min Mat Min Exi Robot Analysis Total . | . . . . . . Derelict Logs Recovered 1 | . . 1 . . . Drone Launches . | . . . . . . Drone Recoveries . | . . . . . . Exploration | -11 -10 -10 -9 -9 -9 ------------- Run | Jun Mat Min Mat Min Exi Turns Passed 2164 | . 180 316 563 93 1012 Spaces Moved 998 | 1 96 147 239 59 456 Core 3 | . . . . . 3 Treads 570 | . . . 58 59 453 Legs 425 | 1 96 147 181 . . Wheels . | . . . . . . Hover . | . . . . . . Flight . | . . . . . . Fastest Speed 50 | 120 120 190 160 160 50 Average Speed 168 | 120 144 190 182 160 159 Slowest Speed 190 | 120 190 190 190 160 160 Overloaded Moves . | . . . . . . Propulsion Burnouts . | . . . . . . Robots Hopped . | . . . . . . Cave-ins Triggered . | . . . . . . Exploration Rate (%) 32 | 2 37 40 27 19 67 Regions Visited 5 Branch Regions 3 Pre-discovered Areas 1 | . . . . . 1 Known Exits Taken . | . . . . . . Unknown Exits Taken 5 | 1 1 1 1 1 . Scrap Searched . | . . . . . . Spaces Dug . | . . . . . . Terrain Destroyed . | . . . . . . Melee . | . . . . . . Projectile . | . . . . . . AOE . | . . . . . . Terrain Rammed . | . . . . . . Walls Destroyed . | . . . . . . Machines Disabled . | . . . . . . Actions | -11 -10 -10 -9 -9 -9 --------- Run | Jun Mat Min Mat Min Exi Total 1267 | . 122 180 309 58 598 Wait 52 | . 11 31 4 . 6 Move 993 | . 95 146 238 58 456 Hop . | . . . . . . Pick Up 25 | . 3 . 7 . 15 Fast Attach 9 | . 1 . 5 . 3 Attach 12 | . . . 3 . 9 Detach 4 | . . . 1 . 3 Swap 9 | . 1 . 6 . 2 Drop 34 | . 2 . 7 . 25 Fire 112 | . 9 2 32 . 69 Melee . | . . . . . . Ram 3 | . . . . . 3 Kick 3 | . . 1 2 . . Crush 11 | . . . 4 . 7 Escape Stasis . | . . . . . . Rewire . | . . . . . . Trap . | . . . . . . Miscellaneous . | . . . . . . Route ------- -11/Junkyard -10/Materials -10/Mines -9/Materials (discovered 2 exits: [*Mat] / [*Min]) -9/Mines -9/Exiles (discovered 1 exit: [*Min]) History --------- Turn | Location | Event 1 | -11/Junkyard | Discovered new exit (range 0) 1 | -11/Junkyard | Entered Materials 132 | -10/Materials | Discovered new exit (range 12) 181 | -10/Materials | Entered Mines 183 | -10/Mines | Assisted by bots powering up and referring to "LRC-V3" 283 | -10/Mines | Learned Materials garrison access intel 309 | -10/Mines | Build established: Mutant 452 | -10/Mines | Discovered new exit (range 14) 497 | -10/Mines | Entered Materials 497 | -9/Materials | Accompanied by 2 allies 497 | -9/Materials | Evolved 2 slots: Propulsion x1, Utility x1 744 | -9/Materials | Discovered new exit (range 12) 1051 | -9/Materials | Discovered new exit (range 7) 1060 | -9/Materials | Entered Mines 1147 | -9/Mines | Deemed a non-threat by the Exiles lab entrance 1147 | -9/Mines | Discovered new exit (range 5) 1153 | -9/Mines | Entered Exiles 1153 | -9/Exiles | Accompanied by 2 allies 1181 | -9/Exiles | Discovered new exit (range 15) 1183 | -9/Exiles | Led the pair of lost Derelicts to a safe place 1216 | -9/Exiles | Met 8R-AWN 1243 | -9/Exiles | Met EX-HEX 1312 | -9/Exiles | Learned location of Zion (-7) 1339 | -9/Exiles | Met EX-BIN 1361 | -9/Exiles | Aligned with FarCom system 1363 | -9/Exiles | Given EX-Vault access code 1401 | -9/Exiles | Opened EX-Vault 1440 | -9/Exiles | Warned to stay clear of 0b10 Research branches 1566 | -9/Exiles | Met EX-DEC 1879 | -9/Exiles | Attacked by the Exiles 2014 | -9/Exiles | Core integrity fell below 50% 2124 | -9/Exiles | Core integrity fell below 20% 2145 | -9/Exiles | Lost 13 parts (1p7n1u4w) 2165 | -9/Exiles | Destroyed by 8R-AWN with 8R-AWN's Boregun Last Messages --------------- 02153_ Penetrated by HV Slug. 02153_ HV Slug penetrates Earth. 02153_ Dropped Lrg. Storage Unit. 02154_ Acquired 19 matter. 02155_ Acquired Lgt. Treads. 02156_ Slammed into 8R-AWN. 02157_ Acquired 14 matter. 02157_ Penetrated by HV Slug. 02157_ HV Slug penetrates Wall. 02157_ HV Slug penetrates Earth. 02158_ Slammed into 8R-AWN. 02161_ Penetrated by HV Slug. 02161_ HV Slug penetrates Wall. 02161_ Penetrated by HV Slug. 02161_ Lgt. Treads destroyed. 02161_ HV Slug penetrates Wall. 02163_ Slammed into 8R-AWN. 02165_ HV Slug penetrates Wall. 02165_ HV Slug penetrates Earth. 02165_ Penetrated by HV Slug. Map ----- +----------------------------------------------------+ | ?????????????????????????????????????????????????? | | ?????????????????????????????????????????????????? | | ?????????????????????????????????????????????????? | | ?????????????????????????????????????????????????? | | ?????????????????????????????????????????????????? | | ?????????????????????????????????????????????????? | | ?????????????????????????????????????????????????? | | ?????????????????????????????????????????????????? | | ?????????????????????????????????????????????????? | | ?????????????????????????????????????????????????? | | ?????????????????????????????????????????????????? | | ?????????????????????????????????????????????????? | | ?????????????????????????????????????????????????? | | ?????????????????????????????????????????????????? | | ?????????????????????????????????????? ?????????#" | | ????????????????????????????????????? ??????????#" | | ???????????????????????????????????# ???????????#" | | ??????????????????????????????????# #???????????#" | | ?????????????????????????????????# #?????????????? | | ?????????????????????????????##?# #??????????????? | | ????????????????????????????# ?# #???????????????? | | ???????????????????????????# ? #????????????????? | | ???????? ??????????????####;## #?????????????????? | | ???????? ######???????#!!! ;#??????????????????? | | ??????? #""#??????# %!!#???????????????????? | | ??????? ??????#g@!!!#???????????????????? | | ???????" #????## ####?????????#####??? | | ???????" #####" !; #????????? """#?? | | ????????# ##" # ##????????"" """#?? | | ?????????# #"" #;! #???????#"" #?? | | ????????????# # # # #??????#"" #?? | | ??????????????## #### # #?????#"" "#?? | | ???????????????### #??# # #????? ""??? | | ?????????########" ""#?# ##??????" "???? | | ?????????# !!""""" % "#?# #??????# #???? | | ?????????# "###"" ####;#???### ###?# | | ?????????# "#?##" ;####X# #"### | | ?????????#! ##??#" """" | | ?????????# !""""""###???#"# % "" " | | ?????????##########?????#### " | | ???????????????????????????### | | ?????????????????????????????### % | | ???????????????????????????????## % | | ????????????????????????????????## | | ?????????????????????????????????##" | | ??????????????????????????????????#""" | | ?????????????????????????????????##" | | ?????????????????????????????????#"" | | ?????????????????????????????????#""" "" | | ?????????????????????????????????""" "" | +----------------------------------------------------+ Best States ------------- Heat Dissipation 38 Energy Generation 14 Energy Capacity 280 Matter Stores 300 Matter Capacity 300 Sight Range 16 Terrain Scan Density 10 Armor Coverage 150 Evasion (%) 55 Recoil Reduction 3 Item Schematics ----------------- None Robot Schematics ------------------ None Fabricated ------------ Nothing Alien Tech Used ----------------- None Achievements -------------- None Challenges ------------ None Game ------ Seed SupersonicSkeletonBiocell Manual? 0 Play Time 00:13:46 Cumulative 437.0 hours Start 2023.05.02 @ 20:37:18 End 2023.05.02 @ 20:48:05 Sessions 1 Manual Loads 0 Difficulty Rogue Special Mode None Game No. 475 Rogue 475 Adventurer 0 Explorer 0 Win Type - Total 12 Types 8/0/3/1/0/0/0/0/0 Lore% 82 Gallery% 90 Achievement% 80 Wizard Run 0 Options --------- ASCII 0 Keyboard 0 Movement Numpad Keybinds 0 Fullscreen 1 Font 18/Terminus Map View 76x50 Tactical HUD 1 Map Filters NONE Filters NONE Steam 1 RUN: baf6b91b-e763-416a-8dae-a1cdb2ed9bec